[Event "Live Chess"]
[Site "Chess.com"]
[Date "2024.06.02"]
[Round "-"]
[White "Frankie_Badacsonyi"]
[Black "ACM42"]
[Result "1-0"]
[WhiteElo "2408"]
[BlackElo "2168"]
[TimeControl "300"]
[EndTime "18:56:09 PDT"]
[Termination "Frankie_Badacsonyi won on time"]

1. Nf3 {[%clk 0:04:58.2]} 1... g6 {[%clk 0:04:57.4]} 2. g3 {[%clk 0:04:56.9]}
2... Bg7 {[%clk 0:04:56.3]} 3. Bg2 {[%clk 0:04:56.4]} 3... Nf6 {[%clk
0:04:53.7]} 4. O-O {[%clk 0:04:55.7]} 4... O-O {[%clk 0:04:52.9]} 5. b3 {[%clk
0:04:55.1]} 5... Ne4 {[%clk 0:04:45.5]} 6. d4 {[%clk 0:04:54.1]} 6... c5 {[%clk
0:04:44.2]} 7. Bb2 {[%clk 0:04:53.3]} 7... d5 {[%clk 0:04:43]} 8. e3 {[%clk
0:04:52.3]} 8... Nc6 {[%clk 0:04:41.6]} 9. Nbd2 {[%clk 0:04:51.5]} 9... f5
{[%clk 0:04:39]} 10. c4 {[%clk 0:04:45.1]} 10... e6 {[%clk 0:04:34.3]} 11. Rc1
{[%clk 0:04:40.5]} 11... b6 {[%clk 0:04:29.3]} 12. Qc2 {[%clk 0:04:36.9]} 12...
Ba6 {[%clk 0:04:24]} 13. Rfd1 {[%clk 0:04:33.7]} 13... Rc8 {[%clk 0:04:22.4]}
14. dxc5 {[%clk 0:04:31.5]} 14... bxc5 {[%clk 0:04:15.2]} 15. Bxg7 {[%clk
0:04:29.5]} 15... Kxg7 {[%clk 0:04:12.4]} 16. Qb2+ {[%clk 0:04:27.8]} 16... Qf6
{[%clk 0:03:19.5]} 17. Qxf6+ {[%clk 0:04:26.3]} 17... Kxf6 {[%clk 0:03:12.7]}
18. cxd5 {[%clk 0:03:56.8]} 18... exd5 {[%clk 0:03:10.3]} 19. Nxe4+ {[%clk
0:03:43.7]} 19... dxe4 {[%clk 0:03:08.5]} 20. Nd2 {[%clk 0:03:30]} 20... Nb4
{[%clk 0:02:59.9]} 21. Nc4 {[%clk 0:03:18.5]} 21... Rfd8 {[%clk 0:02:46.5]} 22.
Bf1 {[%clk 0:03:13.4]} 22... Nxa2 {[%clk 0:02:00.7]} 23. Ra1 {[%clk 0:03:11.5]}
23... Nb4 {[%clk 0:01:53.3]} 24. Nd6 {[%clk 0:03:06.6]} 24... Rc6 {[%clk
0:01:20.5]} 25. Nxe4+ {[%clk 0:03:03.3]} 25... Ke7 {[%clk 0:01:18.6]} 26. Rxd8
{[%clk 0:03:01.2]} 26... Kxd8 {[%clk 0:01:17]} 27. Nc3 {[%clk 0:02:45.7]} 27...
Bxf1 {[%clk 0:01:11.1]} 28. Kxf1 {[%clk 0:02:45.6]} 28... a6 {[%clk 0:01:07.7]}
29. Ra4 {[%clk 0:02:29.7]} 29... Kc7 {[%clk 0:00:57.1]} 30. Ke2 {[%clk
0:02:24.3]} 30... Kb7 {[%clk 0:00:55]} 31. Ra1 {[%clk 0:02:19.8]} 31... Rd6
{[%clk 0:00:53.2]} 32. Na4 {[%clk 0:02:15.8]} 32... Kc6 {[%clk 0:00:39]} 33. Rc1
{[%clk 0:02:14.1]} 33... Rd5 {[%clk 0:00:31.9]} 34. Nb2 {[%clk 0:02:13]} 34...
Kb5 {[%clk 0:00:28.3]} 35. Nc4 {[%clk 0:02:11.1]} 35... Rd3 {[%clk 0:00:22]} 36.
Nd2 {[%clk 0:02:05.2]} 36... a5 {[%clk 0:00:17.9]} 37. h4 {[%clk 0:02:04]} 37...
Rd5 {[%clk 0:00:14.6]} 38. Rh1 {[%clk 0:02:01.1]} 38... a4 {[%clk 0:00:12]} 39.
bxa4+ {[%clk 0:02:00]} 39... Kxa4 {[%clk 0:00:11.2]} 40. h5 {[%clk 0:01:58.3]}
40... Kb5 {[%clk 0:00:08.5]} 41. hxg6 {[%clk 0:01:57.1]} 41... hxg6 {[%clk
0:00:07.6]} 42. Rh6 {[%clk 0:01:56.2]} 42... Rd6 {[%clk 0:00:07.1]} 43. Rh8
{[%clk 0:01:53]} 43... c4 {[%clk 0:00:06.4]} 44. Rb8+ {[%clk 0:01:51.8]} 44...
Kc5 {[%clk 0:00:04.8]} 45. Rc8+ {[%clk 0:01:48.6]} 45... Nc6 {[%clk 0:00:03.2]}
46. Nb1 {[%clk 0:01:44.6]} 46... c3 {[%clk 0:00:02.8]} 47. Nxc3 {[%clk
0:01:43.5]} 47... Kb6 {[%clk 0:00:01.8]} 48. Rf8 {[%clk 0:01:41.3]} 48... Ne5
{[%clk 0:00:00.8]} 49. Na4+ {[%clk 0:01:39.7]} 1-0

[Event "Live Chess"]
[Site "Chess.com"]
[Date "2024.06.02"]
[Round "-"]
[White "Cruiseylee78"]
[Black "gobbles19"]
[Result "1-0"]
[WhiteElo "1677"]
[BlackElo "2276"]
[TimeControl "300"]
[EndTime "18:56:47 PDT"]
[Termination "Cruiseylee78 won by resignation"]

1. d4 {[%clk 0:04:56.9]} 1... Nf6 {[%clk 0:04:58.8]} 2. Bf4 {[%clk 0:04:55.2]}
2... e6 {[%clk 0:04:58.1]} 3. e3 {[%clk 0:04:54.2]} 3... c5 {[%clk 0:04:57.5]}
4. c3 {[%clk 0:04:52.2]} 4... Qb6 {[%clk 0:04:52.8]} 5. Qc2 {[%clk 0:04:49.6]}
5... Nc6 {[%clk 0:04:48.7]} 6. Nf3 {[%clk 0:04:47.5]} 6... Be7 {[%clk
0:04:47.2]} 7. Bd3 {[%clk 0:04:46.4]} 7... d6 {[%clk 0:04:42]} 8. Nbd2 {[%clk
0:04:14.6]} 8... Nh5 {[%clk 0:04:28.3]} 9. Nc4 {[%clk 0:03:30.5]} 9... Qd8
{[%clk 0:04:21.4]} 10. dxc5 {[%clk 0:03:00.1]} 10... Nxf4 {[%clk 0:04:16.9]} 11.
exf4 {[%clk 0:02:56.6]} 11... dxc5 {[%clk 0:04:15.3]} 12. O-O-O {[%clk
0:02:46.5]} 12... Qc7 {[%clk 0:04:14.1]} 13. g3 {[%clk 0:02:39.8]} 13... b5
{[%clk 0:04:11.8]} 14. Nce5 {[%clk 0:02:23.2]} 14... Rb8 {[%clk 0:04:10.8]} 15.
Bxh7 {[%clk 0:02:13.4]} 15... Nxe5 {[%clk 0:03:51.4]} 16. Nxe5 {[%clk 0:02:09]}
16... Bb7 {[%clk 0:03:44.8]} 17. Bg6 {[%clk 0:02:00.4]} 17... Rf8 {[%clk
0:03:35.9]} 18. Bxf7+ {[%clk 0:01:55.3]} 18... Rxf7 {[%clk 0:03:34.4]} 19. Qg6
{[%clk 0:01:50.2]} 19... Bd6 {[%clk 0:03:17.3]} 20. Rxd6 {[%clk 0:01:37.9]}
20... Kf8 {[%clk 0:02:52.9]} 21. Rhd1 {[%clk 0:01:31]} 21... Bd5 {[%clk
0:02:50.6]} 22. Rxe6 {[%clk 0:01:24.2]} 22... Bxe6 {[%clk 0:02:45.1]} 23. Qxe6
{[%clk 0:01:19.8]} 23... Rd8 {[%clk 0:02:27.6]} 24. h4 {[%clk 0:01:11.8]} 24...
Rxd1+ {[%clk 0:02:25.9]} 25. Kxd1 {[%clk 0:01:08.7]} 25... Rf6 {[%clk
0:02:21.7]} 26. Nd7+ {[%clk 0:01:04.5]} 1-0

[Event "Live Chess"]
[Site "Chess.com"]
[Date "2024.06.02"]
[Round "-"]
[White "booktrunk"]
[Black "MagnersCarlsberg2870"]
[Result "1-0"]
[WhiteElo "1516"]
[BlackElo "1793"]
[TimeControl "300"]
[EndTime "18:56:53 PDT"]
[Termination "booktrunk won by resignation"]

1. e3 {[%clk 0:04:50.1]} 1... c5 {[%clk 0:04:56.7]} 2. Nf3 {[%clk 0:04:45.4]}
2... Nc6 {[%clk 0:04:54.9]} 3. b3 {[%clk 0:04:43.2]} 3... Nf6 {[%clk 0:04:53]}
4. Bb2 {[%clk 0:04:40.3]} 4... g6 {[%clk 0:04:48.9]} 5. Be2 {[%clk 0:04:38.5]}
5... Bg7 {[%clk 0:04:47.8]} 6. O-O {[%clk 0:04:36.5]} 6... O-O {[%clk
0:04:46.9]} 7. Nc3 {[%clk 0:04:34.6]} 7... d6 {[%clk 0:04:45.6]} 8. Rb1 {[%clk
0:04:33.3]} 8... Bf5 {[%clk 0:04:40.8]} 9. d3 {[%clk 0:04:28.4]} 9... a6 {[%clk
0:04:32.6]} 10. e4 {[%clk 0:04:27.5]} 10... Bg4 {[%clk 0:04:26.4]} 11. h3 {[%clk
0:04:24.9]} 11... Bxf3 {[%clk 0:04:25.2]} 12. Bxf3 {[%clk 0:04:24]} 12... Ne5
{[%clk 0:04:24.4]} 13. Be2 {[%clk 0:04:20.4]} 13... b5 {[%clk 0:04:19.2]} 14. f4
{[%clk 0:04:10.9]} 14... Nc6 {[%clk 0:04:14.6]} 15. Nd5 {[%clk 0:04:05.2]} 15...
Nb4 {[%clk 0:03:55.7]} 16. Nxb4 {[%clk 0:03:57.2]} 16... cxb4 {[%clk 0:03:53.8]}
17. g3 {[%clk 0:03:49]} 17... Qb6+ {[%clk 0:03:52.1]} 18. Kg2 {[%clk 0:03:43.1]}
18... Rac8 {[%clk 0:03:46.6]} 19. Bf3 {[%clk 0:03:38.6]} 19... Qc5 {[%clk
0:03:36.8]} 20. Rc1 {[%clk 0:03:33.5]} 20... Nd7 {[%clk 0:03:33.2]} 21. Bxg7
{[%clk 0:03:29]} 21... Kxg7 {[%clk 0:03:32]} 22. Qd2 {[%clk 0:03:27.6]} 22... e6
{[%clk 0:03:19.3]} 23. d4 {[%clk 0:03:24.9]} 23... Qc3 {[%clk 0:03:16.2]} 24.
Qxc3 {[%clk 0:03:22.7]} 24... bxc3 {[%clk 0:03:15]} 25. Rfe1 {[%clk 0:03:16.4]}
25... b4 {[%clk 0:03:08.4]} 26. Re3 {[%clk 0:03:15.1]} 26... f5 {[%clk 0:02:59]}
27. exf5 {[%clk 0:03:11.2]} 27... exf5 {[%clk 0:02:57.9]} 28. Re7+ {[%clk
0:03:09.6]} 28... Rf7 {[%clk 0:02:57.1]} 29. Rxf7+ {[%clk 0:03:02.5]} 29... Kxf7
{[%clk 0:02:56.2]} 30. Bd5+ {[%clk 0:03:01.7]} 30... Kf6 {[%clk 0:02:53]} 31.
Re1 {[%clk 0:03:01.2]} 31... Nb6 {[%clk 0:02:27.3]} 32. Re6+ {[%clk 0:02:57.3]}
32... Kf7 {[%clk 0:02:22.7]} 33. Rxd6+ {[%clk 0:02:55.3]} 33... Nxd5 {[%clk
0:02:21.8]} 34. Rxd5 {[%clk 0:02:52.1]} 34... Re8 {[%clk 0:02:20.9]} 35. Re5
{[%clk 0:02:39.2]} 35... Rd8 {[%clk 0:02:08.2]} 36. d5 {[%clk 0:02:37.8]} 36...
h6 {[%clk 0:02:02.3]} 37. Kf3 {[%clk 0:02:35.3]} 37... Rd6 {[%clk 0:01:58.7]}
38. Ke3 {[%clk 0:02:33.3]} 38... Kf6 {[%clk 0:01:54.8]} 39. Kd4 {[%clk
0:02:30.8]} 39... g5 {[%clk 0:01:52.4]} 40. Kc5 {[%clk 0:02:25.3]} 40... Rd8
{[%clk 0:01:41.8]} 41. Re6+ {[%clk 0:02:21.6]} 41... Kg7 {[%clk 0:01:38.7]} 42.
Rxa6 {[%clk 0:02:19.4]} 42... gxf4 {[%clk 0:01:35.8]} 43. gxf4 {[%clk
0:02:17.7]} 43... h5 {[%clk 0:01:32.7]} 44. h4 {[%clk 0:02:14.1]} 44... Rb8
{[%clk 0:01:28.1]} 45. Re6 {[%clk 0:02:07.2]} 45... Kf7 {[%clk 0:01:23.7]} 46.
Rh6 {[%clk 0:02:04.8]} 46... Rc8+ {[%clk 0:01:21]} 47. Kxb4 {[%clk 0:02:02.9]}
47... Rd8 {[%clk 0:01:17.9]} 48. Rxh5 {[%clk 0:02:01]} 48... Rxd5 {[%clk
0:01:16.9]} 49. Kc4 {[%clk 0:01:59.3]} 49... Ra5 {[%clk 0:01:10.7]} 50. a4
{[%clk 0:01:56.9]} 50... Kg6 {[%clk 0:01:07.9]} 51. Rg5+ {[%clk 0:01:54.6]}
51... Kh6 {[%clk 0:01:03.4]} 52. h5 {[%clk 0:01:50.2]} 52... Ra8 {[%clk
0:00:53.2]} 53. Kxc3 {[%clk 0:01:47.5]} 53... Rc8+ {[%clk 0:00:51.5]} 54. Kb2
{[%clk 0:01:45.9]} 54... Re8 {[%clk 0:00:46.9]} 55. Rxf5 {[%clk 0:01:43.2]} 1-0

[Event "Live Chess"]
[Site "Chess.com"]
[Date "2024.06.02"]
[Round "-"]
[White "GerardATHart"]
[Black "Dhaydon19"]
[Result "0-1"]
[WhiteElo "1393"]
[BlackElo "2680"]
[TimeControl "300"]
[EndTime "18:57:24 PDT"]
[Termination "Dhaydon19 won by checkmate"]

1. e4 {[%clk 0:04:53.7]} 1... c6 {[%clk 0:04:59.7]} 2. d4 {[%clk 0:04:48.1]}
2... d5 {[%clk 0:04:57.9]} 3. exd5 {[%clk 0:04:46]} 3... cxd5 {[%clk 0:04:56.4]}
4. Bd3 {[%clk 0:04:43]} 4... Nf6 {[%clk 0:04:56]} 5. c3 {[%clk 0:04:38.9]} 5...
Nc6 {[%clk 0:04:55.6]} 6. h3 {[%clk 0:04:36.9]} 6... g6 {[%clk 0:04:53.6]} 7.
Nf3 {[%clk 0:04:34.6]} 7... Bf5 {[%clk 0:04:52.6]} 8. O-O {[%clk 0:04:31.3]}
8... Bxd3 {[%clk 0:04:51.4]} 9. Qxd3 {[%clk 0:04:29.1]} 9... Bg7 {[%clk
0:04:51.1]} 10. Bg5 {[%clk 0:04:24.8]} 10... Ne4 {[%clk 0:04:49]} 11. Bh4 {[%clk
0:04:17.5]} 11... O-O {[%clk 0:04:46.8]} 12. Nbd2 {[%clk 0:04:14.8]} 12... f5
{[%clk 0:04:45.1]} 13. Ng5 {[%clk 0:03:59]} 13... Qd7 {[%clk 0:04:42]} 14. Ndxe4
{[%clk 0:03:50.5]} 14... fxe4 {[%clk 0:04:39.1]} 15. Qe3 {[%clk 0:03:43.1]}
15... h6 {[%clk 0:04:35.1]} 16. Nxe4 {[%clk 0:03:36.6]} 16... dxe4 {[%clk
0:04:33]} 17. Qxe4 {[%clk 0:03:34.7]} 17... Qf5 {[%clk 0:04:32.7]} 18. Qe3
{[%clk 0:03:22.2]} 18... g5 {[%clk 0:04:28.9]} 19. Bg3 {[%clk 0:03:18.8]} 19...
Bf6 {[%clk 0:04:26.9]} 20. f4 {[%clk 0:03:04]} 20... g4 {[%clk 0:04:25.3]} 21.
hxg4 {[%clk 0:02:55.1]} 21... Qxg4 {[%clk 0:04:24.1]} 22. f5 {[%clk 0:02:43.6]}
22... Nxd4 {[%clk 0:04:22]} 23. Rf4 {[%clk 0:02:37.7]} 23... Ne2+ {[%clk
0:04:19.4]} 24. Kf2 {[%clk 0:02:32.6]} 24... Nxf4 {[%clk 0:04:18.5]} 25. Qxf4
{[%clk 0:02:23.4]} 25... Qxf4+ {[%clk 0:04:15.6]} 26. Bxf4 {[%clk 0:02:19.9]}
26... Bg5 {[%clk 0:04:14.9]} 27. g3 {[%clk 0:02:15.6]} 27... Bxf4 {[%clk
0:04:10.5]} 28. gxf4 {[%clk 0:02:13.9]} 28... Rxf5 {[%clk 0:04:10.2]} 29. Kf3
{[%clk 0:02:12.1]} 29... Raf8 {[%clk 0:04:09.3]} 30. Rg1+ {[%clk 0:02:06]} 30...
Kh7 {[%clk 0:04:07.8]} 31. Rg4 {[%clk 0:02:03.8]} 31... e5 {[%clk 0:04:05.7]}
32. Ke4 {[%clk 0:01:59.5]} 32... Rxf4+ {[%clk 0:04:04.6]} 33. Rxf4 {[%clk
0:01:57.5]} 33... exf4 {[%clk 0:04:04.2]} 34. Kf3 {[%clk 0:01:55.7]} 34... h5
{[%clk 0:04:03.7]} 35. Kg2 {[%clk 0:01:50.9]} 35... f3+ {[%clk 0:04:02]} 36. Kf2
{[%clk 0:01:49.4]} 36... h4 {[%clk 0:04:01.7]} 37. Kg1 {[%clk 0:01:45.5]} 37...
h3 {[%clk 0:04:01.3]} 38. b3 {[%clk 0:01:42.4]} 38... f2+ {[%clk 0:04:00.4]} 39.
Kf1 {[%clk 0:01:40.8]} 39... h2 {[%clk 0:04:00]} 40. Kg2 {[%clk 0:01:39.4]}
40... h1=Q+ {[%clk 0:03:59.6]} 41. Kg3 {[%clk 0:01:35.9]} 41... f1=Q {[%clk
0:03:58.6]} 42. Kg4 {[%clk 0:01:33.6]} 42... Qf4# {[%clk 0:03:58.1]} 0-1

[Event "Live Chess"]
[Site "Chess.com"]
[Date "2024.06.02"]
[Round "-"]
[White "juniortay"]
[Black "NeilDruggan73"]
[Result "1-0"]
[WhiteElo "2423"]
[BlackElo "1779"]
[TimeControl "300"]
[EndTime "18:57:50 PDT"]
[Termination "juniortay won by checkmate"]

1. e4 {[%clk 0:04:58.3]} 1... d6 {[%clk 0:04:58.2]} 2. Nc3 {[%clk 0:04:56.6]}
2... Nf6 {[%clk 0:04:56.9]} 3. f4 {[%clk 0:04:56.5]} 3... g6 {[%clk 0:04:55.7]}
4. Nf3 {[%clk 0:04:56.4]} 4... Bg7 {[%clk 0:04:54.3]} 5. Bc4 {[%clk 0:04:56.1]}
5... O-O {[%clk 0:04:50.6]} 6. d3 {[%clk 0:04:55.5]} 6... c6 {[%clk 0:04:37.6]}
7. Bb3 {[%clk 0:04:53.9]} 7... b5 {[%clk 0:04:36.5]} 8. O-O {[%clk 0:04:52.7]}
8... Bg4 {[%clk 0:04:31.4]} 9. Qe1 {[%clk 0:04:51]} 9... Nbd7 {[%clk 0:04:26.9]}
10. Qh4 {[%clk 0:04:49.7]} 10... Bxf3 {[%clk 0:04:24.6]} 11. Rxf3 {[%clk
0:04:49.6]} 11... Nc5 {[%clk 0:04:18.9]} 12. f5 {[%clk 0:04:48.6]} 12... Nxb3
{[%clk 0:04:15.3]} 13. axb3 {[%clk 0:04:47.1]} 13... e5 {[%clk 0:04:06.8]} 14.
Bg5 {[%clk 0:04:45.6]} 14... a6 {[%clk 0:03:44.5]} 15. Kh1 {[%clk 0:04:43.8]}
15... h5 {[%clk 0:03:11.4]} 16. Raf1 {[%clk 0:04:40.7]} 16... Kh7 {[%clk
0:03:03.3]} 17. h3 {[%clk 0:04:37.7]} 17... Bh6 {[%clk 0:02:44.2]} 18. Bxf6
{[%clk 0:04:35.6]} 18... Qd7 {[%clk 0:02:37.2]} 19. Bg5 {[%clk 0:04:33.8]} 19...
Bxg5 {[%clk 0:02:35]} 20. Qxg5 {[%clk 0:04:32.7]} 20... Qd8 {[%clk 0:02:34.6]}
21. fxg6+ {[%clk 0:04:27.6]} 21... fxg6 {[%clk 0:02:29.8]} 22. Rf7+ {[%clk
0:04:24.8]} 22... Rxf7 {[%clk 0:02:27.1]} 23. Rxf7+ {[%clk 0:04:24.7]} 23... Kh8
{[%clk 0:02:22.5]} 24. Qh6+ {[%clk 0:04:23.6]} 24... Kg8 {[%clk 0:02:15.7]} 25.
Qg7# {[%clk 0:04:23.5]} 1-0

[Event "Live Chess"]
[Site "Chess.com"]
[Date "2024.06.02"]
[Round "-"]
[White "KGreenGator"]
[Black "RockTroll"]
[Result "1-0"]
[WhiteElo "1790"]
[BlackElo "2194"]
[TimeControl "300"]
[EndTime "18:58:00 PDT"]
[Termination "KGreenGator won by resignation"]

1. c4 {[%clk 0:04:58.1]} 1... Nf6 {[%clk 0:04:58.9]} 2. Nc3 {[%clk 0:04:57.6]}
2... g6 {[%clk 0:04:58.8]} 3. e3 {[%clk 0:04:56.7]} 3... Bg7 {[%clk 0:04:58.7]}
4. d4 {[%clk 0:04:55.5]} 4... d6 {[%clk 0:04:58.4]} 5. Nf3 {[%clk 0:04:54.6]}
5... O-O {[%clk 0:04:58.3]} 6. Be2 {[%clk 0:04:53.7]} 6... Nbd7 {[%clk
0:04:57.9]} 7. O-O {[%clk 0:04:53.4]} 7... e5 {[%clk 0:04:57.6]} 8. Re1 {[%clk
0:04:52.9]} 8... Re8 {[%clk 0:04:56.9]} 9. d5 {[%clk 0:04:51.7]} 9... e4 {[%clk
0:04:52.1]} 10. Nd2 {[%clk 0:04:50.2]} 10... h5 {[%clk 0:04:49.2]} 11. Qc2
{[%clk 0:04:48.9]} 11... Qe7 {[%clk 0:04:48.2]} 12. f3 {[%clk 0:04:44.1]} 12...
Nc5 {[%clk 0:04:34.7]} 13. fxe4 {[%clk 0:04:41.2]} 13... Ncxe4 {[%clk 0:04:33]}
14. Ndxe4 {[%clk 0:04:39.4]} 14... Nxe4 {[%clk 0:04:32.3]} 15. Nxe4 {[%clk
0:04:30.7]} 15... Qxe4 {[%clk 0:04:31.4]} 16. Bd3 {[%clk 0:04:29.3]} 16... Qh4
{[%clk 0:04:27.3]} 17. Bd2 {[%clk 0:04:25.5]} 17... Be5 {[%clk 0:04:24.2]} 18.
h3 {[%clk 0:04:19.5]} 18... Qg3 {[%clk 0:04:22.4]} 19. Bc3 {[%clk 0:04:11.8]}
19... Qh2+ {[%clk 0:04:21.1]} 20. Kf1 {[%clk 0:04:09.8]} 20... Bg3 {[%clk
0:04:17.9]} 21. Bxg6 {[%clk 0:03:54]} 21... Qh1+ {[%clk 0:04:13.8]} 22. Ke2
{[%clk 0:03:52.1]} 22... Qxg2+ {[%clk 0:04:12.9]} 23. Kd3 {[%clk 0:03:47.3]}
23... fxg6 {[%clk 0:04:10.3]} 24. Qxg2 {[%clk 0:03:44.4]} 24... Bf5+ {[%clk
0:04:09.6]} 25. Kd2 {[%clk 0:03:41.2]} 25... h4 {[%clk 0:04:08.4]} 26. Rf1
{[%clk 0:03:37.8]} 26... Be4 {[%clk 0:04:05.9]} 27. Qe2 {[%clk 0:03:34.5]} 27...
Re7 {[%clk 0:04:02.9]} 28. Qg4 {[%clk 0:03:30.6]} 28... Rae8 {[%clk 0:04:00.4]}
29. Bd4 {[%clk 0:03:19.9]} 29... Kh7 {[%clk 0:03:59.1]} 30. Rf6 {[%clk
0:03:12.7]} 30... Bf5 {[%clk 0:03:50.4]} 31. Qg5 {[%clk 0:03:01.2]} 31... c5
{[%clk 0:03:38]} 32. dxc6 {[%clk 0:02:58.7]} 32... bxc6 {[%clk 0:03:37.2]} 33.
c5 {[%clk 0:02:51.5]} 33... dxc5 {[%clk 0:03:35.5]} 34. Bxc5 {[%clk 0:02:50.3]}
34... Rd7+ {[%clk 0:03:34.4]} 35. Ke2 {[%clk 0:02:44.3]} 35... Bd3+ {[%clk
0:03:33]} 36. Kf3 {[%clk 0:02:39.2]} 36... Be4+ {[%clk 0:03:31.1]} 37. Kg4
{[%clk 0:02:36.6]} 37... Bd5 {[%clk 0:03:13.4]} 38. Qxg6+ {[%clk 0:02:33.4]}
38... Kh8 {[%clk 0:03:12.8]} 39. Qxe8+ {[%clk 0:02:27]} 1-0

[Event "Live Chess"]
[Site "Chess.com"]
[Date "2024.06.02"]
[Round "-"]
[White "e4evr"]
[Black "Frankie_Badacsonyi"]
[Result "0-1"]
[WhiteElo "2221"]
[BlackElo "2412"]
[TimeControl "300"]
[EndTime "18:58:39 PDT"]
[Termination "Frankie_Badacsonyi won by checkmate"]

1. d4 {[%clk 0:04:58.6]} 1... d5 {[%clk 0:04:56.4]} 2. Kd2 {[%clk 0:04:57.9]}
2... Kd7 {[%clk 0:04:53.7]} 3. Qe1 {[%clk 0:04:57.1]} 3... Qe8 {[%clk
0:04:52.6]} 4. Kd1 {[%clk 0:04:56.4]} 4... Kd8 {[%clk 0:04:52]} 5. g3 {[%clk
0:04:54.9]} 5... Nf6 {[%clk 0:04:50.7]} 6. Bg2 {[%clk 0:04:54.4]} 6... Bf5
{[%clk 0:04:49.6]} 7. Nf3 {[%clk 0:04:53.6]} 7... e6 {[%clk 0:04:48.6]} 8. Nfd2
{[%clk 0:04:53.2]} 8... c6 {[%clk 0:04:46.7]} 9. Nf1 {[%clk 0:04:52.7]} 9... Bd6
{[%clk 0:04:44.3]} 10. Rg1 {[%clk 0:04:52.1]} 10... h6 {[%clk 0:04:40.7]} 11.
Bh1 {[%clk 0:04:51.5]} 11... Nbd7 {[%clk 0:04:39.5]} 12. Nbd2 {[%clk 0:04:49.2]}
12... Qe7 {[%clk 0:04:37.8]} 13. Nb3 {[%clk 0:04:48.5]} 13... Rc8 {[%clk
0:04:28.7]} 14. Ne3 {[%clk 0:04:44.8]} 14... Bh7 {[%clk 0:04:22.4]} 15. Qa5+
{[%clk 0:04:43.7]} 15... Nb6 {[%clk 0:04:12.1]} 16. Qxa7 {[%clk 0:04:42.5]}
16... Kc7 {[%clk 0:04:11.3]} 17. Qa5 {[%clk 0:04:35.8]} 17... Bb4 {[%clk
0:04:08.9]} 18. Bd2 {[%clk 0:04:33.2]} 18... Bxa5 {[%clk 0:04:07.4]} 19. Bxa5
{[%clk 0:04:32.8]} 19... Ra8 {[%clk 0:04:05.4]} 20. c4 {[%clk 0:04:28.3]} 20...
Rxa5 {[%clk 0:04:03]} 21. Nxa5 {[%clk 0:04:27]} 21... Nxc4 {[%clk 0:04:01.8]}
22. Naxc4 {[%clk 0:04:25.7]} 22... dxc4 {[%clk 0:04:01.7]} 23. Ke1 {[%clk
0:04:21.9]} 23... Qb4+ {[%clk 0:03:59.7]} 24. Kf1 {[%clk 0:04:21.4]} 24... Nd5
{[%clk 0:03:54.3]} 25. Bxd5 {[%clk 0:04:17.7]} 25... cxd5 {[%clk 0:03:53.7]} 26.
Kg2 {[%clk 0:04:15.8]} 26... Qxb2 {[%clk 0:03:52.3]} 27. Kh1 {[%clk 0:04:15.3]}
27... Qxe2 {[%clk 0:03:50.1]} 28. a4 {[%clk 0:04:13.9]} 28... Be4+ {[%clk
0:03:47]} 29. Ng2 {[%clk 0:04:12]} 29... Qxf2 {[%clk 0:03:45.9]} 30. a5 {[%clk
0:04:11]} 30... Ra8 {[%clk 0:03:44.2]} 31. h4 {[%clk 0:04:09.8]} 31... Qxg3
{[%clk 0:03:42.1]} 32. Ra3 {[%clk 0:04:09.1]} 32... Qxh4+ {[%clk 0:03:37.7]} 33.
Rh3 {[%clk 0:04:07.2]} 33... Qxh3# {[%clk 0:03:36.6]} 0-1

[Event "Live Chess"]
[Site "Chess.com"]
[Date "2024.06.02"]
[Round "-"]
[White "KeithArkell"]
[Black "RafaelRony"]
[Result "1-0"]
[WhiteElo "2446"]
[BlackElo "1074"]
[TimeControl "300"]
[EndTime "18:59:20 PDT"]
[Termination "KeithArkell won by checkmate"]

1. d4 {[%clk 0:04:56.2]} 1... d5 {[%clk 0:04:58.6]} 2. Nf3 {[%clk 0:04:55.6]}
2... e6 {[%clk 0:04:58.1]} 3. c4 {[%clk 0:04:55.4]} 3... Nf6 {[%clk 0:04:57.6]}
4. cxd5 {[%clk 0:04:54.8]} 4... exd5 {[%clk 0:04:57]} 5. Nc3 {[%clk 0:04:54.5]}
5... Be7 {[%clk 0:04:55.7]} 6. Bg5 {[%clk 0:04:53.5]} 6... O-O {[%clk
0:04:55.1]} 7. e3 {[%clk 0:04:52.9]} 7... h6 {[%clk 0:04:54.2]} 8. Bxf6 {[%clk
0:04:51.7]} 8... Bxf6 {[%clk 0:04:53.9]} 9. b4 {[%clk 0:04:51.1]} 9... a5 {[%clk
0:04:48.8]} 10. b5 {[%clk 0:04:49.7]} 10... c6 {[%clk 0:04:47.2]} 11. bxc6
{[%clk 0:04:48.5]} 11... Nxc6 {[%clk 0:04:47.1]} 12. Qb3 {[%clk 0:04:46.4]}
12... Re8 {[%clk 0:04:42.6]} 13. Qxd5 {[%clk 0:04:43.3]} 13... Qb6 {[%clk
0:04:40.4]} 14. Qb3 {[%clk 0:04:41.6]} 14... Qc7 {[%clk 0:04:37]} 15. Be2 {[%clk
0:04:39.9]} 15... Be6 {[%clk 0:04:36.1]} 16. Bc4 {[%clk 0:04:36.8]} 16... a4
{[%clk 0:04:32.7]} 17. Nxa4 {[%clk 0:04:34.9]} 17... Bxc4 {[%clk 0:04:24.1]} 18.
Qxc4 {[%clk 0:04:33.9]} 18... Qa5+ {[%clk 0:04:16.8]} 19. Nc3 {[%clk 0:04:31.9]}
19... Rec8 {[%clk 0:04:08]} 20. Qb3 {[%clk 0:04:29]} 20... Ra6 {[%clk
0:03:54.6]} 21. O-O {[%clk 0:04:27.4]} 21... Rb6 {[%clk 0:03:51.9]} 22. Qc2
{[%clk 0:04:16.3]} 22... Nxd4 {[%clk 0:03:50]} 23. Nxd4 {[%clk 0:04:14.9]} 23...
Rxc3 {[%clk 0:03:46.8]} 24. Qd2 {[%clk 0:04:11.6]} 24... Bxd4 {[%clk 0:03:37]}
25. exd4 {[%clk 0:04:10]} 25... Qa3 {[%clk 0:03:35.9]} 26. Rac1 {[%clk
0:03:49.8]} 26... Rd3 {[%clk 0:03:30.6]} 27. Rc8+ {[%clk 0:03:46.5]} 27... Kh7
{[%clk 0:03:28.1]} 28. Qf4 {[%clk 0:03:41.8]} 28... Rf6 {[%clk 0:03:12.5]} 29.
Qe4+ {[%clk 0:03:38.4]} 29... g6 {[%clk 0:03:08.1]} 30. Qe8 {[%clk 0:03:37.1]}
30... g5 {[%clk 0:03:02.9]} 31. Qg8# {[%clk 0:03:36]} 1-0

[Event "Live Chess"]
[Site "Chess.com"]
[Date "2024.06.02"]
[Round "-"]
[White "MagnersCarlsberg2870"]
[Black "e4evr"]
[Result "1-0"]
[WhiteElo "1808"]
[BlackElo "2206"]
[TimeControl "300"]
[EndTime "18:59:46 PDT"]
[Termination "MagnersCarlsberg2870 won by checkmate"]

1. Nf3 {[%clk 0:04:55.2]} 1... b5 {[%clk 0:04:59.9]} 2. e4 {[%clk 0:04:51.8]}
2... f6 {[%clk 0:04:59.8]} 3. Bxb5 {[%clk 0:04:49.9]} 3... Bb7 {[%clk
0:04:59.7]} 4. Nc3 {[%clk 0:04:47]} 4... e5 {[%clk 0:04:59.6]} 5. Nxe5 {[%clk
0:04:41.6]} 5... Bd6 {[%clk 0:04:59]} 6. Qh5+ {[%clk 0:04:39.2]} 6... g6 {[%clk
0:04:58.4]} 7. Nxg6 {[%clk 0:04:38.3]} 7... hxg6 {[%clk 0:04:57.7]} 8. Qxh8
{[%clk 0:04:36.7]} 8... Kf8 {[%clk 0:04:57.6]} 9. Bc4 {[%clk 0:04:31.4]} 9...
Ke7 {[%clk 0:04:54.9]} 10. Qg7+ {[%clk 0:04:25.6]} 10... Ke8 {[%clk 0:04:54]}
11. Qf7# {[%clk 0:04:24.5]} 1-0